bitfinex/quotes_SOLUSD_20240829
["timestamp","ask_amount","ask_price","bid_price","bid_amount"]
[1724940094842,51.87,145.56,145.54,0.07738798]
[1724940095245,51.8701,145.56,145.54,0.07738798]
[1724940095477,0.12549,145.55,145.54,0.07738798]
[1724940095768,0.25098,145.55,145.54,0.07738798]
[1724940095955,0.12549,145.55,145.54,0.07738798]
[1724940096446,6.99589,145.55,145.54,0.07738798]
[1724940096653,51.99589,145.55,145.54,0.07738798]
[1724940098256,45.12549,145.55,145.54,0.07738798]
[1724940098565,6.87,145.57,145.54,0.07738798]
[1724940098566,6.8697,145.57,145.54,0.07738798]
[1724940098772,6.8691,145.58,145.54,0.07738798]
[1724940099868,34.78522866,145.61,145.54,0.07738798]
[1724940099869,6.8685,145.6,145.54,0.07738798]
[1724940100075,6.8685,145.6,145.55,6.8703]
[1724940100455,34.78522866,145.63,145.55,6.6278]
[1724940100758,6.87,145.57,145.54,0.07738798]
[1724940100961,6.8701,145.56,145.54,0.07738798]
[1724940101166,6.8704,145.55,145.54,0.07738798]
[1724940101361,34.78522866,145.57,145.54,0.07738798]
[1724940101570,34.78522866,145.59,145.54,0.07738798]
[1724940101870,45.25098,145.58,145.54,0.07738798]
[1724940102373,6.87,145.56,145.54,0.07738798]
[1724940102552,45.12549,145.55,145.54,0.07738798]
[1724940102749,51.95562866,145.6,145.54,0.07738798]
[1724940103059,6.87,145.56,145.54,0.07738798]
[1724940103661,34.78522866,145.58,145.54,0.07738798]
[1724940103662,6.8695,145.57,145.54,0.07738798]
[1724940104274,34.78522866,145.58,145.54,0.07738798]
[1724940104275,6.99449,145.58,145.54,0.07738798]
[1724940104456,45.0,145.57,145.54,0.07738798]
[1724940104866,34.78522866,145.56,145.54,0.07738798]
[1724940105070,51.8704,145.55,145.54,0.07738798]
[1724940105781,45.12549,145.55,145.54,0.07738798]
[1724940105985,45.25098,145.55,145.54,0.07738798]
[1724940106373,52.12138,145.55,145.54,0.07738798]
[1724940107480,34.78522866,145.56,145.54,0.07738798]
[1724940107794,34.78522866,145.58,145.54,0.07738798]
[1724940108072,6.8704,145.55,145.54,0.07738798]
[1724940108264,6.8699,145.57,145.54,0.07738798]
[1724940108883,51.99559,145.56,145.54,0.07738798]
[1724940109172,6.8704,145.55,145.54,0.07738798]
[1724940109355,52.12138,145.55,145.54,0.07738798]
[1724940109966,52.12138,145.55,145.47,6.0948]
[1724940110153,41.65742866,145.52,145.47,6.0948]
[1724940110575,6.8715,145.53,145.47,12.9689]
[1724940110777,51.99649,145.54,145.48,6.8736]
[1724940111272,45.0,145.54,145.47,6.0948]
[1724940111579,41.65462866,145.58,145.51,6.872]
[1724940111761,34.78522866,145.6,145.53,6.871]
[1724940111966,6.8691,145.58,145.53,6.871]
[1724940112160,6.8686,145.59,145.54,6.8708]
[1724940112363,15.2679,145.61,145.54,6.8708]
[1724940112573,6.8682,145.6,145.55,6.8704]
[1724940112959,6.8676,145.62,145.55,6.8704]
[1724940113165,6.8677,145.61,145.55,6.8704]
[1724940113369,6.8681,145.6,145.55,6.8704]
[1724940113566,6.8675,145.62,145.56,6.8699]
[1724940114758,6.8677,145.61,145.56,6.8699]
[1724940114978,6.8677,145.61,145.55,6.8703]
[1724940115898,106.54632866,145.65,145.55,16.5402]
[1724940116073,6.8675,145.62,145.56,6.8699]
[1724940116254,45.25098,145.61,145.56,6.8699]
[1724940116760,52.11868,145.61,145.56,6.8699]
[1724940116984,52.11868,145.61,145.55,23.4106]
[1724940117570,52.11868,145.61,145.56,6.8699]
[1724940118671,6.8682,145.6,145.55,16.5402]
[1724940118889,45.12549,145.59,145.55,16.5402]
[1724940119182,6.8682,145.6,145.55,23.4106]
[1724940119777,6.8682,145.6,145.55,16.5402]
[1724940119990,7.11898,145.61,145.55,23.4105]
[1724940120167,45.0,145.6,145.55,23.4105]
[1724940120361,67.34292866,145.65,145.57,6.8693]
[1724940120581,67.34292866,145.65,145.55,16.5402]
[1724940120582,6.8671,145.63,145.55,16.5402]
[1724940120762,6.8671,145.63,145.58,6.8689]
[1724940120964,17.1613,145.68,145.56,34.78522866]
[1724940121172,58.72200552,145.69,145.61,6.8673]
[1724940121173,6.8649,145.67,145.61,6.8673]
[1724940122793,6.8663,145.64,145.6,6.4487]
[1724940122972,33.8256,145.69,145.6,13.3164]
[1724940123372,6.8654,145.66,145.6,13.3164]
[1724940123567,45.12549,145.65,145.6,13.3164]
[1724940124065,45.12549,145.65,145.6,6.4487]
[1724940124393,45.12549,145.64,145.56,6.264]
[1724940124594,6.8682,145.6,145.56,6.264]
[1724940124769,0.12549,145.63,145.56,6.264]
[1724940124976,6.8675,145.62,145.57,6.8694]
[1724940125287,45.12549,145.61,145.57,6.8694]
[1724940126086,6.867,145.63,145.58,6.8687]
[1724940126388,17.161,145.68,145.59,1.37376645]
[1724940126567,6.8657,145.66,145.6,6.8679]
[1724940126768,17.161,145.68,145.56,6.264]
[1724940126769,17.161,145.68,145.56,41.04922866]
[1724940127174,6.8672,145.62,145.57,6.8691]
[1724940127379,6.8683,145.6,145.56,6.264]
[1724940127566,6.8677,145.61,145.56,13.1338]
[1724940128388,6.8673,145.62,145.57,6.8695]
[1724940128564,51.94962866,145.65,145.56,6.264]
[1724940128565,6.8685,145.6,145.56,6.264]
[1724940128995,51.99319,145.61,145.56,6.264]
[1724940129174,45.12549,145.61,145.57,6.8694]
[1724940129369,0.12549,145.61,145.56,13.1338]
[1724940130593,6.8657,145.66,145.6,6.8677]
[1724940130792,6.8657,145.66,145.58,34.78522866]
[1724940131088,6.8642,145.69,145.63,6.8663]
[1724940131302,50.0,145.72,145.61,23.3413]
[1724940131473,6.8653,145.66,145.61,16.4739]
[1724940131673,6.8649,145.67,145.61,23.3414]
[1724940131994,34.78522866,145.71,145.61,16.4739]
[1724940132194,17.157,145.72,145.62,6.6144]
[1724940132498,17.23451832,145.73,145.62,42.77293616]
[1724940132665,17.23451832,145.73,145.65,6.8657]
[1724940133082,6.8634,145.7,145.64,6.8661]
[1724940133769,50.18322866,145.77,145.64,34.78522866]
[1724940133986,50.18322866,145.77,145.67,6.8647]
[1724940134200,34.78522866,145.75,145.63,1.37311329]
[1724940134370,34.78522866,145.75,145.62,41.39962866]
[1724940134579,34.78522866,145.73,145.63,20.0]
[1724940135103,34.78522866,145.73,145.64,6.8662]
[1724940135283,45.25098,145.72,145.64,6.8662]
[1724940135595,6.8629,145.71,145.64,6.8662]
[1724940135914,45.25098,145.7,145.64,6.8662]
[1724940136109,34.78522866,145.73,145.66,6.8652]
[1724940136110,6.8624,145.72,145.66,6.8652]
[1724940137186,6.8619,145.74,145.67,6.8646]
[1724940137380,6.98749,145.73,145.67,6.8646]
[1724940137781,45.12549,145.72,145.67,6.8646]
[1724940138081,6.8615,145.74,145.68,6.8642]
[1724940138388,6.8615,145.74,145.68,23.1206]
[1724940139278,51.8624,145.73,145.68,16.2564]
[1724940139474,50.18322866,145.77,145.69,6.4471]
[1724940139704,6.8606,145.76,145.71,6.8625]
[1724940140202,6.8606,145.76,145.7,6.8633]
[1724940140497,6.8601,145.77,145.71,6.8629]
[1724940141196,6.862,145.73,145.69,6.4471]
[1724940141503,6.8616,145.74,145.69,6.4471]
[1724940141695,6.862,145.73,145.69,6.4471]
[1724940142084,0.12549,145.74,145.65,6.5136]
[1724940142294,6.8639,145.69,145.65,6.5136]
[1724940143602,0.12549,145.7,145.64,16.0068]
[1724940143791,45.25098,145.7,145.64,16.0068]
[1724940143994,20.0,145.69,145.64,16.0068]
[1724940144199,6.8648,145.67,145.64,16.0068]
[1724940144507,45.25098,145.68,145.64,16.0068]
[1724940144508,51.98979,145.68,145.64,16.0068]
[1724940144691,6.8662,145.64,145.61,6.3238]
[1724940144893,6.8657,145.65,145.61,6.3238]
[1724940145121,6.8663,145.64,145.61,6.3238]
[1724940145487,6.8667,145.63,145.61,6.3238]
[1724940145716,51.8672,145.62,145.57,6.171]
[1724940145949,51.99269,145.62,145.57,6.171]
[1724940146120,6.8665,145.64,145.57,13.0405]
[1724940146407,6.8665,145.64,145.58,6.869]
[1724940146408,45.25098,145.63,145.58,6.869]
[1724940146600,6.8652,145.67,145.57,6.171]
[1724940146786,45.12549,145.66,145.57,6.171]
[1724940147191,51.99089,145.66,145.57,6.171]
[1724940147391,45.12549,145.66,145.57,6.171]
[1724940147586,6.8662,145.64,145.57,13.04]
[1724940147783,45.12549,145.63,145.57,13.04]
[1724940148007,0.12549,145.65,145.58,6.869]
[1724940148210,65.25098,145.65,145.58,6.869]
[1724940148513,65.25098,145.65,145.57,6.171]
[1724940148899,115.25098,145.65,145.57,6.171]
[1724940149099,65.25098,145.65,145.57,6.171]
[1724940149612,43.65932088,145.64,145.57,6.171]
[1724940149827,45.25098,145.63,145.56,15.3444]
[1724940149999,43.65932088,145.62,145.53,15.0764]
[1724940150191,43.65932088,145.58,145.5,21.3438]
[1724940150394,6.8714,145.53,145.5,21.3438]
[1724940151095,6.8714,145.53,145.5,6.2674]
[1724940151315,6.8714,145.53,145.46,23.62981917]
[1724940151316,6.8716,145.53,145.46,23.62981917]
[1724940151500,6.8716,145.53,145.46,22.8968]
[1724940151711,20.0,145.57,145.46,66.55612088]
[1724940151908,52.12098,145.56,145.46,66.55612088]
[1724940152218,52.12098,145.56,145.49,6.8731]
[1724940152534,45.25098,145.56,145.5,6.8726]
[1724940152699,0.12549,145.56,145.51,6.8722]
[1724940153020,6.868,145.61,145.53,6.8713]
[1724940153318,6.4541,145.63,145.53,6.8713]
[1724940153319,6.8682,145.6,145.53,6.8713]
[1724940153920,50.0,145.61,145.48,43.65932088]
[1724940154100,43.65932088,145.62,145.48,43.65932088]
[1724940154301,6.8691,145.58,145.52,6.8717]
[1724940154494,6.8692,145.58,145.48,43.65932088]
[1724940155211,45.12549,145.57,145.52,6.8718]
[1724940155617,0.12549,145.59,145.53,6.8713]
[1724940155800,65.25098,145.59,145.53,6.8713]
[1724940156408,72.11958,145.59,145.53,6.8713]
[1724940156621,6.8691,145.58,145.49,6.0903]
[1724940156918,6.8702,145.56,145.49,6.0903]
[1724940157104,7.12048,145.57,145.51,6.8723]
[1724940157299,0.12549,145.57,145.52,6.8718]
[1724940157625,6.8691,145.58,145.52,6.8718]
[1724940157801,45.25098,145.57,145.52,6.8718]
[1724940157998,52.12048,145.57,145.51,6.8723]
[1724940158809,6.8705,145.55,145.49,6.0903]
[1724940159010,52.12088,145.57,145.5,6.8728]
[1724940159214,6.8702,145.56,145.5,6.8728]
[1724940159405,45.0,145.55,145.5,6.8728]
[1724940159607,45.0,145.55,145.51,6.8723]
[1724940160109,0.25098,145.57,145.52,6.8717]
[1724940160305,45.25098,145.57,145.52,6.8717]
[1724940160820,45.12549,145.57,145.52,6.8717]
[1724940161003,6.8695,145.58,145.52,6.8717]
[1724940161204,6.8695,145.58,145.49,45.84343455]
[1724940161205,6.8686,145.59,145.49,45.84343455]
[1724940161804,0.12549,145.58,145.49,6.0903]
[1724940162319,6.99469,145.58,145.52,6.8719]
[1724940162522,6.99469,145.58,145.53,6.8712]
[1724940162723,45.0,145.57,145.53,15.4805]
[1724940162918,45.12549,145.57,145.53,15.4805]
[1724940163099,45.0,145.57,145.53,15.4805]
[1724940164027,45.0,145.57,145.53,22.3517]
[1724940164508,51.8696,145.57,145.53,15.4805]
[1724940165407,45.0,145.57,145.53,22.3517]
[1724940165826,51.8696,145.57,145.53,15.4805]
[1724940166327,0.12549,145.58,145.53,15.4805]
[1724940166328,6.869,145.58,145.53,15.4805]
[1724940166630,6.869,145.58,145.53,22.3518]
[1724940167210,6.869,145.58,145.54,6.8709]
[1724940167723,6.8686,145.59,145.54,6.8709]
[1724940167919,45.0,145.58,145.54,6.8709]
[1724940168128,6.8698,145.57,145.53,15.4805]
[1724940168320,45.0,145.56,145.53,15.4805]
[1724940168718,6.871,145.54,145.49,22.4625]
[1724940169020,6.99609,145.55,145.5,6.8727]
[1724940169220,45.0,145.56,145.52,6.8718]
[1724940169420,6.99469,145.58,145.53,6.8713]
[1724940170031,26.8685,145.6,145.54,6.8708]
[1724940170337,52.11968,145.59,145.55,6.8704]
[1724940170630,45.25098,145.59,145.49,54.25916496]
[1724940170829,0.25098,145.59,145.49,54.25916496]
[1724940171213,0.25098,145.59,145.51,31.79666496]
[1724940171407,31.79666496,145.63,145.51,31.79666496]
[1724940171623,31.79666496,145.65,145.54,21.8533]
[1724940171909,15.123,145.64,145.55,1.3738875]
[1724940172128,31.79666496,145.65,145.55,1.3738875]
[1724940172433,17.1635,145.66,145.55,1.3738875]
[1724940172729,17.1635,145.66,145.56,6.8699]
[1724940173120,39.71806823,145.65,145.56,6.8699]
[1724940173321,0.25098,145.64,145.56,6.8699]
[1724940173533,65.25098,145.64,145.56,6.8699]
[1724940174208,6.8678,145.61,145.56,6.8699]
[1724940174529,6.8667,145.63,145.58,6.869]
[1724940175132,6.8672,145.62,145.56,6.8695]
[1724940175437,6.8672,145.62,145.57,6.8694]
[1724940175731,20.53880234,145.67,145.55,39.71806823]
[1724940175967,6.8663,145.64,145.58,6.8686]
[1724940176122,45.0,145.63,145.55,39.71806823]
[1724940176320,65.12549,145.66,145.55,39.71806823]
[1724940176321,6.8657,145.65,145.55,39.71806823]
[1724940176625,6.8653,145.66,145.61,6.8676]
[1724940178241,45.12549,145.65,145.61,6.8676]
[1724940178535,51.99169,145.65,145.6,28.5827]
[1724940180338,45.12549,145.65,145.6,21.7147]
[1724940180510,6.8667,145.63,145.6,21.7147]
[1724940180708,51.8672,145.62,145.57,16.134]
[1724940180913,0.12549,145.63,145.57,16.134]
[1724940181116,45.12549,145.65,145.57,16.134]
[1724940181117,0.12549,145.64,145.59,6.8682]
[1724940181334,51.99169,145.65,145.59,6.8682]
[1724940181537,51.99169,145.65,145.6,6.868]
[1724940181909,21.66010234,145.7,145.61,6.8675]
[1724940182130,6.8651,145.67,145.62,6.8671]
[1724940182336,71.66010234,145.7,145.61,6.8676]
[1724940182635,20.0,145.69,145.6,6.8681]
[1724940182838,20.0,145.69,145.61,6.8676]
[1724940183228,45.25098,145.68,145.61,6.8676]
[1724940183538,6.8654,145.66,145.61,6.8676]
[1724940183956,20.0,145.67,145.59,6.8682]
[1724940183957,6.8663,145.64,145.59,6.8682]
[1724940184241,6.8667,145.63,145.58,6.869]
[1724940184409,51.8672,145.62,145.57,23.0031]
[1724940185014,6.8676,145.61,145.57,16.134]
[1724940185331,6.8681,145.6,145.57,16.134]
[1724940185537,6.8681,145.6,145.55,6.8703]
[1724940185538,45.0,145.59,145.53,15.64]
[1724940185729,6.99489,145.58,145.53,22.511]
[1724940186922,0.12549,145.58,145.54,6.8709]
[1724940187122,52.11958,145.59,145.54,6.8709]
[1724940187337,45.0,145.58,145.53,22.5113]
[1724940187920,45.0,145.58,145.54,6.8707]
[1724940188122,45.0,145.58,145.53,22.5113]
[1724940188535,6.8686,145.59,145.54,6.8706]
[1724940188921,6.8686,145.59,145.53,22.5113]
[1724940188922,0.12549,145.58,145.53,22.5113]
[1724940189123,6.8682,145.6,145.53,15.64]
[1724940189434,6.8681,145.6,145.55,6.8703]
[1724940189949,6.8686,145.59,145.53,22.511]
[1724940190123,6.8686,145.59,145.54,6.8707]
[1724940190323,6.8692,145.58,145.53,15.64]
[1724940191448,6.8692,145.58,145.53,22.5113]
[1724940192248,39.71806823,145.63,145.53,15.64]
[1724940192447,6.8685,145.6,145.55,6.8704]
[1724940192840,6.8677,145.61,145.56,6.8699]
[1724940193238,26.8672,145.62,145.57,6.8694]
[1724940193441,15.6847,145.65,145.54,1.3738101]
[1724940193739,56.88056823,145.67,145.59,6.8685]
[1724940193945,17.1625,145.67,145.6,6.868]
[1724940194136,6.8661,145.65,145.6,6.868]
[1724940194330,6.8663,145.64,145.59,13.0709]
[1724940194659,6.8658,145.65,145.6,6.8681]
[1724940194831,6.8652,145.67,145.62,6.8671]
[1724940195035,4.50110234,145.68,145.59,21.6282]
[1724940195535,6.8657,145.66,145.59,21.6282]
[1724940195737,6.8657,145.66,145.6,6.8677]
[1724940196450,6.8657,145.66,145.61,6.8674]
[1724940196647,6.8648,145.67,145.62,6.8671]
[1724940196942,4.50110234,145.68,145.63,6.8665]
[1724940197145,24.50110234,145.68,145.63,6.8665]
[1724940197331,24.50110234,145.68,145.62,6.8671]
[1724940197842,6.8655,145.66,145.61,6.8674]
[1724940198858,20.0,145.68,145.63,6.8662]
[1724940199060,45.12549,145.67,145.63,6.8662]
[1724940199633,6.8634,145.7,145.65,6.8653]
[1724940200052,48.92222567,145.74,145.62,31.76792567]
[1724940200262,6.862,145.73,145.68,6.8643]
[1724940200643,6.8625,145.72,145.67,13.4054]
[1724940201239,6.8625,145.72,145.68,6.8642]
[1724940201442,6.8621,145.73,145.68,6.8642]
[1724940201659,6.8616,145.74,145.7,6.8633]
[1724940201847,6.8616,145.74,145.69,6.8638]
[1724940202247,31.76792567,145.78,145.7,6.8633]
[1724940202449,31.76792567,145.78,145.71,6.8629]
[1724940202647,6.8596,145.78,145.68,31.76792567]
[1724940203160,6.8596,145.78,145.73,6.8619]
[1724940203547,6.8596,145.78,145.72,6.8624]
[1724940203745,6.8602,145.77,145.72,6.8624]
[1724940203948,31.76792567,145.8,145.71,6.8629]
[1724940204148,6.8602,145.77,145.72,6.8623]
[1724940204346,6.8602,145.77,145.71,6.8627]
[1724940205257,0.12549,145.76,145.67,6.5407]
[1724940205457,0.12549,145.77,145.67,6.5407]
[1724940205746,0.12549,145.77,145.72,6.8623]
[1724940205747,52.11118,145.77,145.72,6.8623]
[1724940206055,6.8597,145.78,145.72,6.8624]
[1724940206359,39.63987006,145.82,145.73,6.8618]
[1724940206560,20.12549,145.81,145.73,6.8618]
[1724940206863,6.8596,145.79,145.73,6.8618]
[1724940207047,0.12549,145.78,145.73,6.8618]
[1724940207368,6.8596,145.79,145.73,6.8618]
[1724940208048,6.8596,145.79,145.74,6.8614]
[1724940208245,6.8596,145.79,145.7,39.63987006]
[1724940208246,15.7761,145.83,145.73,6.3959]
[1724940208458,15.7761,145.83,145.74,1.37209161]
[1724940209056,6.8582,145.81,145.76,6.8604]
[1724940209262,89.63987006,145.86,145.74,1.37205621]
[1724940209263,39.63987006,145.86,145.74,1.37205621]
[1724940209457,32.4441,145.87,145.74,1.37205621]
[1724940209458,32.4441,145.87,145.74,41.01192627]
[1724940209949,39.63987006,145.86,145.73,6.3959]
[1724940210156,6.8578,145.82,145.76,6.8605]
[1724940210352,6.8572,145.84,145.78,6.8596]
[1724940210572,6.8578,145.82,145.77,6.8601]
[1724940210869,6.8582,145.81,145.73,6.3959]
[1724940211365,6.8577,145.82,145.73,6.3959]
[1724940211568,89.63987006,145.86,145.75,6.8606]
[1724940211869,6.8582,145.82,145.76,6.8603]
[1724940212071,0.12549,145.81,145.76,6.8603]
[1724940212264,6.8573,145.83,145.73,6.3959]
[1724940212476,45.0,145.82,145.73,6.3959]
[1724940213385,51.8578,145.82,145.73,6.3959]
[1724940213567,0.12549,145.81,145.76,6.8605]
[1724940213875,6.98379,145.81,145.76,6.8605]
[1724940214084,45.0,145.8,145.76,6.8605]
[1724940215059,6.8578,145.82,145.77,6.86]
[1724940215277,45.0,145.81,145.77,6.86]
[1724940215565,45.0,145.81,145.76,6.8604]
[1724940215760,45.0,145.81,145.76,6.8605]
[1724940215761,0.12549,145.8,145.76,6.8605]
[1724940215953,6.8578,145.82,145.78,6.8596]
[1724940216364,6.8578,145.82,145.77,6.86]
[1724940216951,1.19553741,145.88,145.78,22.4697]
[1724940217273,6.855,145.88,145.82,6.8576]
[1724940217470,6.855,145.88,145.83,6.8571]
[1724940217861,6.855,145.88,145.84,6.8567]
[1724940218269,6.8545,145.89,145.84,6.8567]
[1724940218567,6.8555,145.87,145.83,6.8572]
[1724940219073,17.134,145.91,145.84,6.8567]
[1724940219374,6.855,145.88,145.83,6.8571]
[1724940219575,6.8549,145.88,145.84,6.8566]
[1724940219756,6.8549,145.88,145.83,6.8572]
[1724940220077,6.8554,145.87,145.83,6.8572]
[1724940220769,6.8554,145.87,145.82,6.8574]
[1724940221554,6.8554,145.87,145.83,6.8572]
[1724940221861,6.8554,145.87,145.82,6.8576]
[1724940222862,6.856,145.86,145.82,6.8576]
[1724940223357,6.8558,145.87,145.82,6.8573]
[1724940223677,6.8558,145.87,145.78,62.10957006]
[1724940223981,6.8558,145.87,145.79,45.12549]
[1724940225186,6.856,145.86,145.82,6.8577]
[1724940225471,6.8555,145.87,145.83,6.857]
[1724940228779,6.855,145.88,145.84,6.8568]
[1724940229476,6.8555,145.87,145.83,6.8572]
[1724940229676,6.855,145.88,145.84,6.8568]
[1724940230268,6.8554,145.87,145.83,6.8571]
[1724940230575,6.8559,145.86,145.82,6.8577]
[1724940230877,6.8555,145.87,145.82,6.8577]
[1724940231375,17.26209,145.89,145.78,54.13146839]
[1724940231678,45.12549,145.88,145.79,20.0]
[1724940232086,51.98039,145.88,145.84,6.8567]
[1724940232385,6.8545,145.89,145.85,6.8562]
[1724940232878,32.3274,145.92,145.82,31.66176839]
[1724940233178,6.8547,145.89,145.85,6.8562]
[1724940233559,6.8549,145.88,145.84,6.8567]
[1724940233770,6.8554,145.87,145.83,6.8569]
[1724940233968,6.8551,145.88,145.84,6.8566]
[1724940234179,6.8541,145.9,145.86,6.8558]
[1724940234566,6.8541,145.9,145.85,6.8562]
[1724940235277,6.8559,145.86,145.8,31.66176839]
[1724940235481,6.8552,145.88,145.81,1.37134262]
[1724940235863,6.8552,145.88,145.84,6.8568]
[1724940236079,6.8555,145.87,145.83,6.8571]
[1724940236979,6.855,145.88,145.84,6.8567]
[1724940237174,6.8546,145.89,145.85,6.8562]
[1724940238163,6.8539,145.91,145.86,6.8557]
[1724940238357,6.8539,145.91,145.87,6.8554]
[1724940238582,6.8539,145.91,145.86,6.8557]
[1724940239078,6.8548,145.89,145.83,22.6721]
[1724940239281,17.132,145.93,145.85,6.8559]
[1724940239282,6.8541,145.9,145.85,6.8559]
[1724940239465,31.66176839,145.94,145.83,22.6721]
[1724940239671,6.8532,145.92,145.88,6.8548]
[1724940239877,6.8526,145.93,145.89,6.8543]
[1724940241179,6.8532,145.92,145.84,31.66176839]
[1724940241885,6.8532,145.92,145.85,1.37089497]
[1724940242184,6.8532,145.92,145.84,31.66176839]
[1724940242379,6.8541,145.9,145.83,22.6721]
[1724940242785,6.8535,145.91,145.83,22.6721]
[1724940243195,31.66176839,145.91,145.83,22.6721]
[1724940243522,65.25098,145.9,145.83,22.6721]
[1724940244192,6.855,145.88,145.83,22.6721]
[1724940244992,6.855,145.88,145.83,29.5291]
[1724940245485,31.66176839,145.89,145.79,21.4374]
[1724940245694,31.66176839,145.87,145.79,21.4374]
[1724940245870,6.8569,145.84,145.79,21.4374]
[1724940246187,6.8562,145.86,145.79,21.4374]
[1724940246488,51.98179,145.85,145.79,28.2965]
[1724940247266,51.98179,145.85,145.8,6.8586]
[1724940247486,45.12549,145.85,145.8,6.8586]
[1724940247969,6.8554,145.87,145.8,8.22982128]
[1724940248171,0.12549,145.88,145.79,21.4374]
[1724940248172,6.856,145.86,145.81,6.8582]
[1724940248382,0.12549,145.88,145.81,6.8582]
[1724940248697,6.8556,145.87,145.81,6.8582]
[1724940248987,36.2583,145.9,145.79,21.4374]
[1724940249169,6.8549,145.89,145.8,33.03303225]
[1724940249371,20.0,145.88,145.83,6.8572]
[1724940249777,26.8549,145.88,145.83,6.8572]
[1724940249993,23.1127,145.9,145.84,6.8566]
[1724940250382,20.0,145.89,145.85,6.8563]
[1724940251296,6.8544,145.9,145.85,6.8563]
[1724940251588,6.8535,145.91,145.85,6.8563]
[1724940251776,6.853,145.92,145.82,31.66176839]
[1724940251977,6.853,145.92,145.83,21.37096296]
[1724940252184,22.6072,145.94,145.85,22.4462]
[1724940252391,22.6072,145.94,145.88,6.8549]
[1724940252697,6.8525,145.94,145.85,22.4462]
[1724940252907,6.8515,145.96,145.86,51.66176839]
[1724940253107,6.852,145.95,145.86,51.66176839]
[1724940253400,16.3432,145.98,145.86,51.66176839]
[1724940253584,6.8511,145.97,145.87,1.37070761]
[1724940253894,6.8511,145.97,145.86,51.66176839]
[1724940253895,6.8513,145.96,145.86,51.66176839]
[1724940254493,6.8513,145.96,145.87,45.12549]
[1724940254997,6.8513,145.96,145.86,51.66176839]
[1724940255200,6.8513,145.96,145.87,45.0]
[1724940255403,6.8513,145.96,145.87,45.12549]
[1724940256202,6.8517,145.95,145.86,51.66176839]
[1724940256499,51.8517,145.95,145.86,51.66176839]
[1724940256681,51.8517,145.95,145.86,51.63703367]
[1724940257790,6.8511,145.96,145.87,45.12549]
[1724940258095,6.8519,145.95,145.86,51.63703367]
[1724940258892,47.98023367,145.98,145.86,51.63703367]
[1724940258893,6.8522,145.94,145.86,51.63703367]
[1724940259079,6.8516,145.95,145.86,51.63703367]
[1724940259397,6.8512,145.96,145.86,51.63703367]
[1724940259595,6.8512,145.96,145.87,45.12549]
[1724940259792,6.8517,145.95,145.86,51.63703367]
[1724940259973,6.8521,145.94,145.86,51.63703367]
[1724940260684,6.8517,145.95,145.86,51.63703367]
[1724940261091,6.8523,145.94,145.86,31.63703367]
[1724940261291,0.25098,145.97,145.85,22.57169]
[1724940261292,6.97819,145.93,145.85,22.4462]
[1724940261592,6.97719,145.95,145.86,51.63703367]
[1724940261987,6.8517,145.95,145.86,51.63703367]
[1724940262380,6.8512,145.96,145.86,51.63703367]
[1724940262589,16.3432,145.98,145.88,31.63703367]
[1724940262784,6.8511,145.97,145.88,31.63703367]
[1724940263008,16.3432,145.98,145.88,31.63703367]
[1724940263300,6.852,145.95,145.88,31.63703367]
[1724940263883,6.8521,145.94,145.88,31.63703367]
[1724940264079,6.8521,145.94,145.86,51.63703367]
[1724940264989,45.25098,145.93,145.86,51.63703367]
[1724940265209,0.25098,145.93,145.86,51.63703367]
[1724940265506,6.8521,145.94,145.86,51.63703367]
[1724940265710,6.8521,145.94,145.87,1.37081109]
[1724940265886,0.12549,145.95,145.85,22.4462]